bitfinex-derivatives/quotes_BTCF0:USTF0_20241021
["timestamp","ask_amount","ask_price","bid_price","bid_amount"]
[1729503460674,0.16370899,68258.0,68257.0,0.66043207]
[1729503461071,0.10355898,68258.0,68257.0,0.66043207]
[1729503462089,0.10355898,68258.0,68257.0,0.6542444]
[1729503462273,0.10355898,68258.0,68257.0,0.09966534]
[1729503462475,0.10355898,68258.0,68257.0,0.21882534]
[1729503462672,0.16370899,68258.0,68257.0,0.09966534]
[1729503462876,0.16370899,68258.0,68257.0,0.21882534]
[1729503463077,0.40574298,68258.0,68257.0,0.073285]
[1729503464081,0.33245898,68258.0,68257.0,0.192445]
[1729503464784,0.33245898,68258.0,68257.0,0.073285]
[1729503464981,0.39260899,68258.0,68257.0,0.073285]
[1729503465182,0.39261561,68258.0,68257.0,0.06595651]
[1729503465886,0.34761967,68258.0,68257.0,0.06595651]
[1729503466188,0.39261557,68258.0,68257.0,0.06595651]
[1729503466387,0.39261557,68258.0,68257.0,0.18511651]
[1729503466588,0.34761967,68258.0,68257.0,0.18511651]
[1729503467888,0.42090367,68258.0,68257.0,0.11916]
[1729503469479,0.308184,68258.0,68257.0,0.11916]
[1729503470687,0.2349,68258.0,68257.0,0.11916]
[1729503470985,0.308184,68258.0,68257.0,0.11916]
[1729503471187,0.2349,68258.0,68257.0,0.192445]
[1729503471374,0.2349,68258.0,68257.0,0.11916]
[1729503471780,0.2349,68258.0,68256.0,0.02577562]
[1729503471983,0.3608,68257.0,68240.0,0.303302]
[1729503472187,0.3608,68257.0,68252.0,0.07329]
[1729503472388,0.3608,68257.0,68253.0,0.192449]
[1729503472592,0.073288,68255.0,68253.0,0.11916]
[1729503472890,0.073288,68254.0,68253.0,0.11916]
[1729503473389,0.3608,68256.0,68253.0,0.11916]
[1729503473591,0.3608,68256.0,68255.0,0.073287]
[1729503473984,0.3608,68256.0,68253.0,0.12116]
[1729503473985,0.002,68254.0,68253.0,0.12116]
[1729503474184,0.002,68254.0,68253.0,0.001]
[1729503474387,0.05299875,68254.0,68253.0,0.12116]
[1729503474694,0.05099875,68254.0,68253.0,0.12016]
[1729503475294,0.12428675,68254.0,68253.0,0.12016]
[1729503475787,0.11828675,68254.0,68253.0,0.11916]
[1729503475989,0.11828675,68254.0,68251.0,0.073291]
[1729503476189,0.11828675,68254.0,68252.0,0.11916]
[1729503476588,0.079288,68254.0,68253.0,0.001]
[1729503476793,0.079288,68254.0,68253.0,0.002]
[1729503476794,0.081288,68254.0,68253.0,0.002]
[1729503476994,0.075288,68254.0,68253.0,0.001]
[1729503477189,1.441288,68254.0,68253.0,0.001]
[1729503477389,1.366,68254.0,68251.0,0.001]
[1729503477688,0.073298,68245.0,68242.0,0.073301]
[1729503477890,0.24148,68243.0,68242.0,0.073301]
[1729503478992,0.7474,68244.0,68243.0,0.0733]
[1729503479189,0.7466,68244.0,68243.0,0.0733]
[1729503479492,0.844195,68244.0,68243.0,0.0733]
[1729503480386,0.917494,68244.0,68243.0,0.0733]
[1729503480691,0.851195,68244.0,68243.0,0.0743]
[1729503481092,0.79860593,68244.0,68243.0,0.0743]
[1729503481895,0.80060593,68244.0,68243.0,0.0753]
[1729503482399,0.85319515,68244.0,68243.0,0.0651354]
[1729503483197,0.60709515,68244.0,68243.0,0.0651354]
[1729503483395,0.10659515,68244.0,68243.0,0.0651354]
[1729503483603,0.05400593,68244.0,68243.0,0.0651354]
[1729503483789,0.10659515,68244.0,68243.0,0.0651354]
[1729503483992,0.29574017,68244.0,68243.0,0.3157354]
[1729503485001,0.10659515,68244.0,68243.0,0.3157354]
[1729503485203,0.10658799,68244.0,68243.0,0.3157354]
[1729503485584,0.29548186,68244.0,68243.0,0.3157354]
[1729503486498,0.10658799,68244.0,68243.0,0.3157354]
[1729503487301,0.10658799,68244.0,68243.0,0.7553354]
[1729503488998,0.18898356,68248.0,68247.0,0.073296]
[1729503489198,0.18898356,68248.0,68247.0,0.434096]
[1729503489401,0.5931,68262.0,68261.0,0.073281]
[1729503489793,0.2315,68262.0,68261.0,0.434081]
[1729503491105,0.2335,68262.0,68261.0,0.435081]
[1729503492298,0.2335,68262.0,68261.0,0.436081]
[1729503493601,0.002,68262.0,68261.0,0.436081]
[1729503497400,0.1597092,68262.0,68261.0,0.25456663]
[1729503497910,0.09955911,68262.0,68261.0,0.76732763]
[1729503498097,0.02839305,68276.0,68268.0,0.073273]
[1729503498304,0.02619526,68276.0,68275.0,0.073266]
[1729503498504,0.23253453,68276.0,68275.0,0.073266]
[1729503499407,0.23253453,68278.0,68277.0,0.073264]
[1729503500116,0.29267371,68278.0,68277.0,0.043924]
[1729503500313,0.06013918,68278.0,68277.0,0.043924]
[1729503500505,0.06013918,68278.0,68277.0,0.044924]
[1729503501104,0.11269937,68278.0,68277.0,0.044924]
[1729503501303,1.59337453,68282.0,68277.0,0.044924]
[1729503501304,0.23337453,68282.0,68281.0,0.073259]
[1729503501504,0.23337453,68282.0,68277.0,1.06613865]
[1729503501505,0.06773044,68291.0,68277.0,0.58281465]
[1729503501719,0.38735965,68292.0,68291.0,0.073249]
[1729503501910,0.4550713,68292.0,68291.0,0.073249]
[1729503502412,0.38735965,68292.0,68291.0,0.073249]
[1729503502607,0.02655965,68292.0,68291.0,0.073249]
[1729503502918,0.235,68299.0,68298.0,0.073241]
[1729503503115,0.27996787,68299.0,68298.0,0.073241]
[1729503504217,0.35861098,68299.0,68298.0,0.073241]
[1729503504412,0.30606864,68299.0,68298.0,0.073241]
[1729503504715,0.30606864,68299.0,68298.0,0.074241]
[1729503504915,0.30606864,68299.0,68298.0,0.075241]
[1729503505415,0.35861098,68299.0,68298.0,0.075241]
[1729503505603,0.30606864,68299.0,68298.0,0.075241]
[1729503506817,0.30606864,68299.0,68298.0,0.002]
[1729503507422,0.30606864,68299.0,68289.0,0.07325]
[1729503507713,0.073251,68289.0,68284.0,0.07545118]
[1729503507912,0.28126787,68288.0,68284.0,0.07545118]
[1729503508104,0.04496787,68287.0,68284.0,0.07545118]
[1729503508304,0.04496787,68287.0,68285.0,0.073255]
[1729503508512,0.11822087,68287.0,68284.0,0.00219618]
[1729503508711,0.04496787,68286.0,68284.0,0.07545218]
[1729503508919,0.04496787,68285.0,68284.0,0.07645218]
[1729503509115,0.04496787,68286.0,68284.0,0.07645218]
[1729503509415,0.04496787,68285.0,68284.0,0.07645218]
[1729503509718,0.04497574,68286.0,68284.0,0.00319618]
[1729503509917,0.04497574,68285.0,68284.0,0.00319618]
[1729503510118,0.26218617,68288.0,68286.0,0.073254]
[1729503510421,0.04497574,68287.0,68286.0,0.073254]
[1729503511809,0.09951808,68287.0,68286.0,0.074254]
[1729503512211,0.04697574,68287.0,68286.0,0.074254]
[1729503512415,0.04697574,68287.0,68286.0,0.02039954]
[1729503512416,0.15965017,68287.0,68286.0,0.02039954]
[1729503512623,0.15965017,68287.0,68286.0,0.002]
[1729503512918,0.09951808,68287.0,68286.0,0.002]
[1729503513510,0.09951808,68287.0,68286.0,0.075254]
[1729503514021,0.09751808,68287.0,68286.0,0.074254]
[1729503514317,0.09751808,68287.0,68286.0,0.075254]
[1729503514318,0.09851808,68287.0,68286.0,0.075254]
[1729503514724,0.17177108,68287.0,68286.0,0.075254]
[1729503515127,0.17077108,68287.0,68286.0,0.074254]
[1729503515319,0.23190317,68287.0,68286.0,0.002]
[1729503515518,0.23190317,68287.0,68282.0,0.073258]
[1729503515519,0.073257,68283.0,68282.0,0.06970877]
[1729503515716,0.29861736,68283.0,68282.0,0.06970877]
[1729503515915,0.22536036,68283.0,68282.0,0.06970877]
[1729503516725,0.15765017,68283.0,68282.0,0.07070877]
[1729503517227,0.15965017,68283.0,68282.0,0.07170877]
[1729503517426,0.15965017,68283.0,68279.0,0.16222165]
[1729503517624,0.15765017,68282.0,68280.0,0.07326]
[1729503517839,0.15765017,68281.0,68280.0,0.07326]
[1729503518711,0.15765147,68281.0,68280.0,0.07326]
[1729503518916,0.15765147,68281.0,68280.0,0.07426]
[1729503519525,0.04497704,68281.0,68280.0,0.07426]
[1729503519724,0.04597704,68281.0,68280.0,0.07526]
[1729503521119,0.04897704,68281.0,68280.0,0.07526]
[1729503523017,0.04897704,68281.0,68280.0,0.002]
[1729503523018,0.12223604,68281.0,68280.0,0.002]
[1729503523422,0.12224195,68281.0,68280.0,0.002]
[1729503524329,0.04898295,68281.0,68280.0,0.07526]
[1729503528435,0.04898054,68281.0,68280.0,0.07526]
[1729503529127,0.04898054,68281.0,68280.0,0.10149496]
[1729503530429,0.04898058,68281.0,68280.0,0.10149496]
[1729503533123,0.004,68281.0,68280.0,0.10149496]
[1729503533435,0.434044,68296.0,68294.0,0.073245]
[1729503533436,0.2363,68295.0,68294.0,0.073245]
[1729503533630,1.64127281,68295.0,68294.0,0.073245]
[1729503534624,1.6938219,68295.0,68294.0,0.073245]
[1729503534819,1.6968219,68295.0,68294.0,0.074245]
[1729503535230,1.6978219,68295.0,68294.0,0.075245]
[1729503535430,1.75494851,68295.0,68294.0,0.074245]
[1729503535629,1.75794851,68295.0,68294.0,0.075245]
[1729503536332,0.3378219,68295.0,68294.0,0.075245]
[1729503537431,0.1015219,68295.0,68294.0,0.074245]
[1729503537640,0.0975219,68295.0,68294.0,0.075245]
[1729503538329,0.0975219,68295.0,68294.0,0.074245]
[1729503538530,0.0975219,68295.0,68294.0,0.075245]
[1729503539231,0.23456084,68295.0,68294.0,0.075245]
[1729503539435,0.28710993,68295.0,68294.0,0.075245]
[1729503540024,0.28703866,68295.0,68294.0,0.074245]
[1729503540223,0.28703866,68295.0,68294.0,0.075245]
[1729503540628,0.28703866,68295.0,68294.0,0.10203831]
[1729503540937,0.0975219,68295.0,68294.0,0.09183448]
[1729503541330,0.3608,68303.0,68294.0,0.09183448]
[1729503541331,0.05254909,68302.0,68301.0,0.073238]
[1729503542527,0.3608,68303.0,68296.0,0.3608]
[1729503542831,0.3608,68303.0,68302.0,0.073237]
[1729503544334,0.073227,68311.0,68310.0,0.073227]
[1729503544722,0.2354,68314.0,68303.0,0.073236]
[1729503544723,0.07542218,68313.0,68303.0,0.073236]
[1729503544923,0.07542218,68313.0,68302.0,0.46141621]
[1729503545126,0.07542218,68313.0,68311.0,0.073227]
[1729503545332,0.00219618,68313.0,68311.0,0.073227]
[1729503547039,0.311026,68312.0,68311.0,0.001]
[1729503547735,0.2378,68312.0,68311.0,0.075227]
[1729503547928,0.311026,68312.0,68311.0,0.002]
[1729503549132,0.073234,68305.0,68300.0,0.073238]
[1729503549325,0.3608,68301.0,68296.0,0.07543808]
[1729503549534,0.09751151,68300.0,68299.0,0.07324]
[1729503549739,0.04496743,68300.0,68299.0,0.07324]
[1729503549935,0.04496743,68300.0,68299.0,1.210408]
[1729503550456,0.236,68314.0,68313.0,0.073225]
[1729503550738,1.36076,68321.0,68319.0,0.073219]
[1729503551037,0.06012074,68320.0,68313.0,0.22023522]
[1729503551232,0.00076,68321.0,68320.0,0.073217]
[1729503551429,0.3608,68324.0,68314.0,0.22023522]
[1729503551631,0.3608,68324.0,68323.0,0.073214]
[1729503552540,0.3608,68324.0,68304.0,0.073234]
[1729503552541,0.3608,68324.0,68314.0,0.02677673]
[1729503552735,0.3608,68324.0,68310.0,0.3608]
[1729503552736,0.073216,68321.0,68313.0,0.001]
[1729503552931,0.002,68320.0,68319.0,0.001]
[1729503553239,0.002,68320.0,68319.0,0.074219]
[1729503553736,0.05452553,68320.0,68319.0,0.074219]
[1729503553925,0.05252553,68320.0,68319.0,0.073219]
[1729503554128,0.05452553,68320.0,68319.0,0.074219]
[1729503554741,0.05652553,68320.0,68319.0,0.075219]
[1729503554926,0.19279282,68320.0,68319.0,0.075219]
[1729503555132,0.24531835,68320.0,68319.0,0.075219]
[1729503555446,0.10147559,68320.0,68319.0,0.075219]
[1729503557540,0.004,68320.0,68319.0,0.075219]
[1729503560644,0.077217,68320.0,68319.0,0.075219]
[1729503561743,0.004,68320.0,68319.0,0.075219]
[1729503562149,0.434765,68332.0,68319.0,1.09537648]
[1729503562337,0.3608,68332.0,68331.0,0.073206]
[1729503563752,0.3608,68332.0,68331.0,0.074206]
[1729503563753,0.3618,68332.0,68331.0,0.074206]
[1729503564250,0.3618,68332.0,68331.0,0.075206]
[1729503564251,0.3628,68332.0,68331.0,0.075206]
[1729503566637,0.3628,68332.0,68331.0,0.10147192]
[1729503566840,0.002,68332.0,68331.0,0.10147192]
[1729503567444,0.002,68332.0,68331.0,0.14539959]
[1729503567845,0.002,68332.0,68331.0,0.10147192]
[1729503568547,0.002,68332.0,68331.0,0.14539959]
[1729503569545,0.002,68332.0,68331.0,0.10295092]
[1729503570157,0.002,68332.0,68331.0,0.14669309]
[1729503570359,0.073201,68336.0,68332.0,0.073204]
[1729503570551,0.073201,68336.0,68334.0,0.001479]
[1729503570949,0.48816,68338.0,68334.0,0.001479]
[1729503571149,0.560599,68338.0,68336.0,0.073199]
[1729503571759,0.560599,68338.0,68337.0,0.001479]
[1729503572651,0.6580557,68338.0,68337.0,0.001479]
[1729503572854,0.6580557,68338.0,68337.0,0.002479]
[1729503573750,0.6580557,68338.0,68337.0,0.003479]
[1729503574254,0.5848567,68338.0,68337.0,0.076678]
[1729503575650,0.58485798,68338.0,68337.0,0.076678]
[1729503577851,0.65805598,68338.0,68337.0,0.003479]
[1729503579858,0.560598,68338.0,68337.0,0.003479]
[1729503584755,0.560598,68338.0,68337.0,0.076678]
[1729503584954,0.3608,68339.0,68337.0,0.442479]
[1729503585154,0.0008,68346.0,68345.0,0.073191]
[1729503585364,0.3608,68351.0,68350.0,0.073185]
[1729503585663,0.3608,68351.0,68350.0,0.074664]
[1729503586862,0.3608,68351.0,68350.0,0.075664]
[1729503586863,0.45823525,68351.0,68350.0,0.075664]
[1729503587164,0.23370876,68351.0,68350.0,0.076664]
[1729503587467,0.04493226,68351.0,68350.0,0.076664]
[1729503587662,0.04493226,68351.0,68350.0,0.10275202]
[1729503587963,0.09743525,68351.0,68350.0,0.04907762]
[1729503588164,0.09743525,68351.0,68350.0,0.02956702]
[1729503588361,0.09743525,68351.0,68350.0,0.10275202]
[1729503589068,0.09743525,68351.0,68350.0,0.54167202]
[1729503589365,0.09743525,68351.0,68350.0,0.10275202]
[1729503589563,0.04493226,68351.0,68350.0,0.10275202]
[1729503589952,0.09743525,68351.0,68350.0,0.10275202]
[1729503590176,0.56643525,68351.0,68350.0,0.10275202]
[1729503590363,0.56643738,68351.0,68350.0,0.10275202]
[1729503590558,0.56643592,68351.0,68350.0,0.10275202]
[1729503591764,0.33313592,68351.0,68350.0,0.10275202]
[1729503592767,0.57203592,68351.0,68350.0,0.10275202]
[1729503593064,0.64521992,68351.0,68350.0,0.02956702]
[1729503594057,0.64521992,68351.0,68350.0,0.01929162]
[1729503594262,0.64521992,68351.0,68348.0,0.073187]
[1729503594455,0.09743592,68350.0,68348.0,0.073187]
[1729503594656,0.09743592,68349.0,68348.0,0.073187]
[1729503594966,0.073186,68350.0,68348.0,0.073187]
[1729503595162,0.4754,68351.0,68348.0,0.073187]
[1729503595362,0.4746,68351.0,68348.0,0.001]
[1729503595660,0.4746,68351.0,68348.0,0.0270142]
[1729503595966,0.073186,68349.0,68348.0,0.002]
[1729503596164,0.073186,68349.0,68340.0,0.04374217]
[1729503596165,1.36,68349.0,68340.0,0.02577423]
[1729503596467,1.36,68349.0,68325.0,0.073212]
[1729503596468,0.433995,68341.0,68338.0,0.073198]
[1729503597167,0.3608,68341.0,68340.0,0.073196]
[1729503598562,0.3618,68341.0,68340.0,0.074196]
[1729503598764,0.001,68341.0,68340.0,0.074196]
[1729503599470,0.001,68341.0,68340.0,0.11898094]
[1729503599664,0.001,68341.0,68340.0,0.075196]
[1729503600271,0.001,68341.0,68340.0,0.514156]
[1729503600469,0.0021946,68363.0,68344.0,0.073191]
[1729503600470,0.2497,68362.0,68344.0,0.073191]
[1729503600766,0.073177,68358.0,68355.0,0.073179]
[1729503600967,0.073177,68358.0,68356.0,0.073178]
[1729503601364,0.073177,68358.0,68346.0,0.3608]
[1729503601365,0.073177,68358.0,68357.0,0.073178]
[1729503601962,0.20645603,68358.0,68357.0,0.073178]
[1729503602364,0.13427903,68358.0,68357.0,0.073178]
[1729503602564,0.08177746,68358.0,68357.0,0.073178]
[1729503602872,0.13427872,68358.0,68357.0,0.001]
[1729503603672,0.08177746,68358.0,68357.0,0.001]
[1729503603873,0.15495446,68358.0,68357.0,0.001]
[1729503604170,0.15395446,68358.0,68357.0,0.002]
[1729503604556,0.10902341,68358.0,68357.0,0.002]
[1729503604757,0.073177,68358.0,68357.0,0.002]
[1729503604963,0.10902275,68358.0,68357.0,0.002]
[1729503605165,0.03584575,68358.0,68357.0,0.075178]
[1729503607269,0.03584575,68358.0,68357.0,0.10179592]
[1729503609576,0.03584575,68358.0,68357.0,0.02861792]
[1729503609577,0.03584412,68358.0,68357.0,0.02861792]
[1729503609770,0.03584412,68358.0,68357.0,0.10179592]
[1729503609973,0.3608,68359.0,68358.0,0.073177]
[1729503611274,0.3608,68359.0,68358.0,0.075177]
[1729503615177,0.3608,68359.0,68358.0,0.002]
[1729503615383,0.3608,68359.0,68358.0,0.075177]
[1729503624983,0.44157561,68359.0,68358.0,0.075177]
[1729503625379,0.49407598,68359.0,68358.0,0.075177]
[1729503627694,0.13327598,68359.0,68358.0,0.075177]
[1729503627988,0.44157561,68359.0,68358.0,0.075177]
[1729503628191,0.49407598,68359.0,68358.0,0.075177]
[1729503629291,0.13327598,68359.0,68358.0,0.075177]
[1729503629486,0.44157561,68359.0,68358.0,0.075177]
[1729503629689,0.49407598,68359.0,68358.0,0.075177]
[1729503632095,0.3608,68359.0,68358.0,0.075177]
[1729503633383,0.7463,68362.0,68358.0,0.002]
[1729503633588,0.3608,68359.0,68358.0,0.075177]
[1729503640091,0.49407373,68359.0,68358.0,0.06765931]
[1729503642495,0.49407373,68359.0,68358.0,0.06865931]
[1729503647111,0.3608,68359.0,68358.0,0.06865931]
[1729503650004,0.3608,68359.0,68358.0,0.002]
[1729503650711,0.3608,68359.0,68352.0,0.02694996]
[1729503650712,0.073182,68353.0,68352.0,0.02694996]
[1729503650912,0.073182,68353.0,68339.0,0.00156]
[1729503650913,0.3608,68353.0,68343.0,0.04377865]
[1729503651103,0.3608,68345.0,68342.0,0.04377865]
[1729503651302,1.793991,68345.0,68341.0,0.04377865]
[1729503651511,1.793991,68345.0,68340.0,0.10976]
[1729503651512,2.301391,68345.0,68340.0,0.10976]
[1729503652212,2.301391,68345.0,68337.0,0.11697765]
[1729503652213,2.301391,68345.0,68344.0,0.00319441]
[1729503652722,2.2282,68345.0,68344.0,0.00419441]
[1729503653802,2.301391,68345.0,68344.0,0.00419441]
[1729503654016,2.559291,68345.0,68344.0,0.00419441]
[1729503655509,2.4861,68345.0,68344.0,0.00419441]
[1729503656011,1.7208,68345.0,68344.0,0.07738641]
[1729503656317,0.3608,68345.0,68344.0,0.07738641]
[1729503657719,0.3608,68345.0,68344.0,0.13588215]
[1729503658122,0.3608,68345.0,68344.0,0.07738641]
[1729503658516,0.3608,68345.0,68344.0,0.13587138]
[1729503659614,0.433991,68345.0,68344.0,0.00419441]
[1729503661126,0.433991,68345.0,68344.0,0.002]
[1729503663215,0.51479116,68345.0,68314.0,0.14303422]
[1729503663427,0.51479116,68345.0,68330.0,0.073207]
[1729503663428,0.3608,68332.0,68330.0,0.073207]
[1729503663630,0.08080016,68331.0,68330.0,0.073207]
[1729503664222,0.08080016,68331.0,68326.0,0.336771]
[1729503664427,0.08080016,68331.0,68327.0,0.1092]
[1729503664627,0.073207,68330.0,68327.0,0.1092]
[1729503664820,0.08080016,68329.0,68327.0,0.1092]
[1729503665217,0.73206,68331.0,68326.0,0.02675882]
[1729503665218,0.07321,68327.0,68326.0,0.001]
[1729503665416,0.15402218,68327.0,68326.0,0.001]
[1729503665722,1.44081218,68327.0,68326.0,0.001]
[1729503665916,1.49333702,68327.0,68326.0,0.001]
[1729503666325,1.44281218,68327.0,68326.0,0.001]
[1729503667221,0.08281218,68327.0,68326.0,0.074211]
[1729503668435,0.08481218,68327.0,68326.0,0.075211]
[1729503668819,0.08481218,68327.0,68326.0,0.002]
[1729503669131,0.11307182,68327.0,68326.0,0.002]
[1729503669333,0.15802572,68327.0,68326.0,0.002]
[1729503670233,0.15803024,68327.0,68326.0,0.002]
[1729503670827,0.16503024,68327.0,68326.0,0.002]
[1729503671429,0.16503024,68327.0,68315.0,0.073223]
[1729503671430,0.09782024,68327.0,68315.0,0.073223]
[1729503671625,0.2516,68316.0,68313.0,0.073224]
[1729503671929,0.2516,68316.0,68291.0,0.14303422]
[1729503671930,0.08082024,68315.0,68314.0,0.182424]
[1729503672231,0.08082024,68315.0,68314.0,0.073224]
[1729503673237,0.08082024,68315.0,68314.0,0.074224]
[1729503673238,0.08882024,68315.0,68314.0,0.074224]
[1729503673933,0.0438654,68315.0,68314.0,0.074224]
[1729503674136,0.09881976,68315.0,68314.0,0.075224]
[1729503674529,0.0538654,68315.0,68314.0,0.075224]
[1729503674833,0.018,68315.0,68314.0,0.075224]
[1729503675040,0.018,68315.0,68314.0,0.002]
[1729503675538,0.589123,68315.0,68314.0,0.002]
[1729503675733,0.62499285,68315.0,68314.0,0.002]
[1729503676132,0.55176985,68315.0,68314.0,0.002]
[1729503676539,1.91176985,68315.0,68314.0,0.002]
[1729503677429,1.95673183,68315.0,68314.0,0.002]
[1729503677631,1.95673062,68315.0,68314.0,0.002]
[1729503677832,1.91176985,68315.0,68314.0,0.075224]
[1729503678145,0.5159,68315.0,68314.0,0.075224]
[1729503679435,0.5159,68315.0,68314.0,0.002]
[1729503680037,0.949923,68315.0,68314.0,0.002]
[1729503683234,0.949923,68315.0,68305.0,0.17947065]
[1729503683535,0.3608,68306.0,68305.0,0.15309517]
[1729503683739,0.3608,68306.0,68304.0,0.073235]
[1729503683740,0.3608,68306.0,68304.0,0.22633017]
[1729503684443,0.3608,68306.0,68305.0,0.075234]
[1729503684842,0.3608,68306.0,68305.0,0.074234]
[1729503685147,0.3618,68306.0,68305.0,0.073234]
[1729503685333,0.3618,68306.0,68305.0,0.11708917]
[1729503685334,0.3648,68306.0,68305.0,0.11708917]
[1729503685734,0.32815188,68306.0,68305.0,0.073234]
[1729503685930,0.32715188,68306.0,68305.0,0.073234]
[1729503686236,0.32815188,68306.0,68305.0,0.073234]
[1729503686636,0.001,68306.0,68305.0,0.073234]
[1729503686829,0.004,68306.0,68305.0,0.073234]
[1729503689741,0.004,68306.0,68304.0,0.02691366]
[1729503689941,0.073245,68301.0,68300.0,0.00219572]
[1729503690140,0.3608,68301.0,68300.0,0.00219572]
[1729503690533,0.918445,68301.0,68300.0,0.00219572]
[1729503691141,0.922445,68301.0,68300.0,0.00219572]
[1729503692934,0.928445,68301.0,68300.0,0.00319572]
[1729503693141,0.89108029,68301.0,68300.0,0.07644172]
[1729503693338,0.89108029,68301.0,68300.0,0.00319572]
[1729503694645,0.89107992,68301.0,68300.0,0.00319572]
[1729503694829,0.96432492,68301.0,68300.0,0.00319572]
[1729503695947,0.89107992,68301.0,68300.0,0.00319572]
[1729503696341,0.89107992,68301.0,68300.0,0.001]
[1729503696643,0.01,68301.0,68300.0,0.074246]
[1729503700448,0.01,68301.0,68300.0,0.1180272]
[1729503700843,0.01,68301.0,68300.0,0.074246]
[1729503701045,0.01,68301.0,68300.0,0.1180272]
[1729503701749,0.680528,68317.0,68316.0,0.073229]
[1729503702157,1.9673,68317.0,68316.0,0.073229]
[1729503703040,1.9773,68317.0,68316.0,0.074229]
[1729503703553,1.9853,68317.0,68316.0,0.075229]
[1729503707253,1.6245,68317.0,68316.0,0.075229]
[1729503707449,1.9853,68317.0,68316.0,0.002]
[1729503708250,2.02117062,68317.0,68316.0,0.002]
[1729503708453,2.11866904,68317.0,68316.0,0.075229]
[1729503708751,2.11866904,68317.0,68316.0,0.002]
[1729503710647,2.19189704,68317.0,68316.0,0.002]
[1729503711244,2.13936001,68317.0,68316.0,0.002]
[1729503715350,2.058528,68317.0,68316.0,0.002]
[1729503715545,2.497648,68317.0,68296.0,0.04382047]
[1729503715745,2.497648,68317.0,68257.0,0.10250867]
[1729503715746,0.434043,68303.0,68297.0,0.1096]
[1729503715951,0.434043,68303.0,68299.0,0.073247]
[1729503716355,0.3608,68303.0,68297.0,0.1096]
[1729503716554,0.3608,68303.0,68302.0,0.073244]
[1729503717260,0.006,68303.0,68302.0,0.073244]
[1729503717761,0.3608,68309.0,68303.0,0.073243]
[1729503717959,0.31733,68315.0,68310.0,0.073235]
[1729503717960,0.3608,68314.0,68310.0,0.073235]
[1729503718149,0.3608,68314.0,68313.0,0.073232]
[1729503719454,0.3708,68314.0,68313.0,0.074232]
[1729503720152,0.01,68314.0,68313.0,0.074232]
[1729503720363,0.01,68314.0,68313.0,0.075232]
[1729503720364,0.019,68314.0,68313.0,0.075232]
[1729503720761,0.019,68314.0,68313.0,0.10180026]
[1729503723267,0.019,68314.0,68313.0,0.46260026]
[1729503723463,0.09982583,68314.0,68313.0,0.46260026]
[1729503723859,0.09982583,68314.0,68313.0,0.10180026]
[1729503724065,0.09982583,68314.0,68313.0,0.002]
[1729503724256,0.09982583,68314.0,68299.0,0.074847]
[1729503724257,0.09982583,68314.0,68307.0,0.10684]
[1729503724452,0.03586788,68313.0,68310.0,0.073235]
[1729503724658,0.3608,68311.0,68310.0,0.073235]
[1729503724959,0.44162583,68311.0,68310.0,0.073235]
[1729503725154,0.44162583,68311.0,68307.0,0.10684]
[1729503725361,0.13335836,68310.0,68307.0,0.10684]
[1729503725561,0.08082583,68309.0,68307.0,0.001]
[1729503725866,0.08082583,68308.0,68307.0,0.075239]
[1729503726165,0.08082583,68308.0,68307.0,0.074239]
[1729503726363,0.08082583,68308.0,68307.0,0.073239]
[1729503726565,0.03586788,68308.0,68307.0,0.074239]
[1729503727672,0.08982583,68308.0,68307.0,0.001]
[1729503727861,0.09982583,68308.0,68307.0,0.075239]
[1729503728466,0.09982583,68308.0,68307.0,0.875239]
[1729503729263,0.09982583,68308.0,68307.0,0.621279]
[1729503730370,0.09982583,68308.0,68307.0,0.182079]
[1729503730564,0.019,68308.0,68307.0,0.182079]
[1729503730764,0.019,68308.0,68307.0,0.24056397]
[1729503732472,0.019,68308.0,68307.0,0.67976397]
[1729503733174,0.019,68308.0,68307.0,0.982079]
[1729503735875,0.3608,68319.0,68307.0,0.982079]
[1729503736078,0.2464,68324.0,68321.0,0.073224]
[1729503737272,0.01119598,68322.0,68321.0,0.074224]
[1729503737870,0.01219598,68322.0,68321.0,0.075224]
[1729503738570,0.01119598,68322.0,68321.0,0.074224]
[1729503738879,0.00419598,68322.0,68321.0,0.10173399]
[1729503743269,0.3608,68336.0,68335.0,0.073209]
[1729503743574,0.3608,68336.0,68335.0,0.180049]
[1729503744565,0.3618,68336.0,68335.0,0.181049]
[1729503744780,0.3618,68336.0,68335.0,0.620049]
[1729503744976,0.3618,68336.0,68335.0,0.621049]
[1729503745173,0.3608,68336.0,68335.0,0.620049]
[1729503745476,0.3608,68336.0,68335.0,0.621049]
[1729503745477,0.44260413,68336.0,68335.0,0.621049]
[1729503746272,0.44260413,68336.0,68335.0,0.20849218]
[1729503746466,0.49512304,68336.0,68335.0,0.20849218]
[1729503748470,0.13432304,68336.0,68335.0,0.20849218]
[1729503748676,0.08180413,68336.0,68335.0,0.20849218]
[1729503748981,0.08180413,68336.0,68335.0,0.64749218]
[1729503749166,0.05251891,68343.0,68342.0,0.073201]
[1729503749366,0.00088,68347.0,68346.0,0.073197]
[1729503749574,0.2491,68352.0,68351.0,0.073192]
[1729503751582,0.2491,68352.0,68351.0,0.074192]
[1729503751774,0.2491,68352.0,68351.0,0.075192]
[1729503752576,0.2491,68352.0,68351.0,0.002]
[1729503752981,0.2491,68352.0,68351.0,0.075192]
[1729503754073,0.2491,68352.0,68351.0,0.074192]
[1729503754385,0.2491,68352.0,68351.0,0.075192]
[1729503754583,0.2491,68352.0,68351.0,0.10160215]
[1729503754781,0.2491,68352.0,68351.0,0.10060215]
[1729503755086,0.2491,68352.0,68351.0,0.20828215]
[1729503757482,0.2491,68352.0,68351.0,0.10160215]
[1729503757690,0.2491,68352.0,68351.0,0.20828215]
[1729503758676,0.2491,68352.0,68351.0,0.10160215]
[1729503758877,0.2491,68352.0,68351.0,0.20828215]
[1729503759489,0.2491,68352.0,68351.0,0.075192]
[1729503759693,0.073192,68351.0,68336.0,0.073208]
[1729503759988,0.2491,68352.0,68345.0,0.073198]